bitfinex/quotes_ETHUSD_20220202
["timestamp","ask_amount","ask_price","bid_price","bid_amount"]
[1643767280707,0.1811,2760.5,2759.9,0.38573754]
[1643767280960,1.5323283,2760.4,2759.6,0.13819997]
[1643767281153,0.1811,2760.3,2759.6,0.13819997]
[1643767281559,0.1811,2760.4,2759.6,0.13819997]
[1643767281953,0.1811,2760.4,2759.8,0.34308671]
[1643767282158,1.53234809,2760.3,2759.8,0.34308671]
[1643767282554,0.1811,2760.4,2759.6,0.13819997]
[1643767282754,1.53235002,2760.3,2759.6,0.13819997]
[1643767283655,1.53235002,2760.3,2759.6,0.55120353]
[1643767283955,0.43006319,2760.1,2759.5,0.35173991]
[1643767284163,0.1811,2760.4,2759.5,0.35173991]
[1643767284355,1.53235097,2760.3,2759.5,0.35173991]
[1643767285397,1.90315341,2760.3,2759.5,0.35173991]
[1643767285595,1.53235097,2760.2,2759.5,0.35173991]
[1643767287896,1.53235097,2760.1,2759.5,0.35173991]
[1643767288097,1.53235097,2760.0,2759.5,0.35173991]
[1643767288298,0.1811,2760.4,2759.5,0.35173991]
[1643767288553,1.53235611,2760.3,2759.8,0.92441519]
[1643767288953,0.19345472,2760.7,2759.8,1.22441519]
[1643767289254,1.53215451,2760.6,2759.8,1.22441519]
[1643767289653,1.53215451,2760.6,2760.1,0.44811092]
[1643767289857,1.53215451,2760.6,2759.7,0.523]
[1643767290058,2.19942078,2760.5,2759.3,0.7041]
[1643767290257,1.53215451,2760.4,2759.3,0.7041]
[1643767290458,1.99617813,2760.3,2759.3,0.7041]
[1643767290860,1.53230794,2760.2,2759.7,0.34388585]
[1643767291063,3.49877814,2760.2,2759.4,0.77360464]
[1643767291259,1.9664702,2760.2,2759.4,1.07360464]
[1643767291460,0.21509298,2760.6,2759.4,1.07360464]
[1643767291661,1.53223827,2760.5,2759.4,1.07360464]
[1643767292399,1.53223827,2760.5,2760.2,0.3303634]
[1643767292596,0.01235472,2760.7,2760.2,0.3303634]
[1643767292797,1.53210661,2760.6,2760.2,0.3303634]
[1643767293500,1.53210661,2760.6,2759.7,0.523]
[1643767293799,1.53210661,2760.6,2759.1,1.1775]
[1643767293800,2.40336924,2760.5,2759.4,0.7041]
[1643767293999,1.71320661,2760.4,2759.4,0.523]
[1643767294198,1.53210661,2760.3,2759.4,0.823]
[1643767294399,0.1811,2760.6,2759.4,0.823]
[1643767294599,1.53215402,2760.5,2760.0,0.79603783]
[1643767294807,1.53215402,2760.5,2759.4,0.523]
[1643767295201,29.78681916,2760.4,2758.7,1.90586]
[1643767295406,1.01240379,2759.1,2758.5,0.1811]
[1643767295605,1.01240379,2759.1,2757.7,13.13619999]
[1643767295606,0.01233312,2758.6,2757.7,13.13619999]
[1643767295805,0.01227463,2757.8,2757.7,13.13619999]
[1643767296060,0.01227463,2757.8,2757.6,0.1812]
[1643767296061,3.21647936,2757.8,2757.6,0.1812]
[1643767296257,4.88827786,2757.8,2757.6,0.1812]
[1643767296461,6.91229,2757.7,2757.6,0.1812]
[1643767296659,8.33911919,2757.7,2757.6,0.1812]
[1643767296857,30.32121,2757.7,2757.6,0.1812]
[1643767297963,30.09211919,2757.7,2757.6,0.1812]
[1643767299566,30.09211919,2757.7,2756.9,0.25]
[1643767299806,0.42005051,2756.7,2756.3,0.94643442]
[1643767300112,0.523,2757.0,2756.3,1.24643442]
[1643767301312,0.523,2757.0,2756.6,0.3163588]
[1643767301509,0.523,2757.0,2756.6,0.6163588]
[1643767301707,0.7042,2757.6,2756.6,0.6163588]
[1643767301908,0.523,2757.6,2756.6,0.6163588]
[1643767302307,0.87924177,2757.6,2757.0,0.7796078]
[1643767302712,0.87924177,2757.6,2756.6,0.6163588]
[1643767303666,0.523,2757.6,2756.6,0.6163588]
[1643767303861,0.523,2757.6,2756.7,0.1812]
[1643767304260,0.523,2757.6,2756.7,1.1812]
[1643767304660,0.41655554,2757.5,2756.9,0.72624091]
[1643767305067,0.79939994,2757.9,2756.9,1.02624091]
[1643767306068,1.22282818,2757.9,2757.2,0.32935699]
[1643767306569,1.22282818,2757.9,2756.9,1.02624091]
[1643767307804,0.39274736,2757.4,2756.9,0.72624091]
[1643767307999,2.10239881,2757.8,2756.9,0.72624091]
[1643767308401,3.10239881,2757.8,2756.9,0.72624091]
[1643767309301,1.40780376,2757.8,2756.9,0.72624091]
[1643767309703,2.42955518,2757.8,2756.9,0.72624091]
[1643767310106,3.42955518,2757.8,2756.8,0.43900266]
[1643767310947,3.42955518,2757.8,2756.4,0.4312]
[1643767310948,0.523,2757.7,2756.4,0.4312]
[1643767311148,3.43669643,2757.6,2756.4,0.3]
[1643767311349,0.523,2757.5,2756.2,0.86960045]
[1643767311548,0.523,2757.5,2756.2,1.46960045]
[1643767311549,0.1812,2757.4,2756.2,1.46960045]
[1643767311751,0.35845635,2757.2,2756.6,0.41953681]
[1643767312149,8.34049101,2757.5,2756.6,0.71953681]
[1643767312347,8.15929101,2757.5,2756.6,0.71953681]
[1643767312547,8.15929101,2757.5,2756.7,0.73568593]
[1643767313147,8.15929101,2757.5,2756.6,0.3]
[1643767313349,8.15929101,2757.5,2756.0,0.1812]
[1643767314251,8.15929101,2757.5,2756.6,0.34200724]
[1643767314451,8.15929101,2757.5,2756.6,0.64200724]
[1643767314902,2.00529092,2757.4,2756.5,0.93385826]
[1643767315301,2.00529092,2757.4,2756.5,1.23385826]
[1643767315512,8.15929101,2757.5,2756.5,1.23385826]
[1643767316104,8.15929101,2757.5,2757.1,0.38921116]
[1643767316705,8.15929101,2757.5,2757.2,0.78061672]
[1643767316904,7.63629101,2757.5,2756.3,0.25]
[1643767317105,1.97000299,2757.4,2756.3,0.25]
[1643767317304,1.97000299,2757.4,2756.0,0.1812]
[1643767317503,7.63629101,2757.5,2756.0,0.1812]
[1643767317903,7.63629101,2757.5,2756.0,1.08797]
[1643767318107,7.63629101,2757.5,2756.8,0.36096758]
[1643767318302,7.63629101,2757.5,2756.8,0.66096758]
[1643767319145,1.96817222,2757.4,2756.8,0.66096758]
[1643767319546,8.06330205,2757.5,2756.8,0.66096758]
[1643767320153,7.63629101,2757.5,2756.8,0.66096758]
[1643767322193,7.63629101,2757.5,2756.8,0.36096758]
[1643767322390,7.63629101,2757.5,2756.8,0.66096758]
[1643767324098,0.3,2757.4,2756.8,0.36096758]
[1643767324298,0.34690192,2757.5,2756.0,1.15677]
[1643767324299,1.86990192,2757.5,2756.1,0.1812]
[1643767324500,0.523,2757.3,2756.1,0.1812]
[1643767324698,0.1812,2757.2,2756.1,0.1812]
[1643767324899,0.523,2757.1,2756.1,0.1812]
[1643767325499,0.7042,2757.1,2756.1,0.1812]
[1643767325700,0.42543323,2756.9,2756.1,0.1812]
[1643767325969,0.94843323,2756.9,2756.1,0.1812]
[1643767326763,0.94843323,2756.9,2756.2,0.33682486]
[1643767327163,0.523,2756.9,2756.2,0.63682486]
[1643767328165,0.523,2756.9,2756.4,0.91366691]
[1643767329368,0.523,2756.9,2756.7,0.43838111]
[1643767330211,0.523,2756.9,2756.7,0.73838111]
[1643767330413,6.31842778,2757.2,2756.7,0.73838111]
[1643767331218,6.84142778,2757.2,2756.7,0.73838111]
[1643767331417,6.84142778,2757.2,2756.4,0.91366691]
[1643767331613,6.84142778,2757.2,2756.4,0.3]
[1643767331812,0.1812,2757.1,2755.7,2.01250132]
[1643767332013,0.523,2757.0,2755.7,2.31250132]
[1643767332614,0.523,2757.0,2756.7,0.39850999]
[1643767332818,0.52151398,2757.0,2756.7,0.39850999]
[1643767333449,0.52151398,2757.0,2756.3,0.78454164]
[1643767333450,0.52151398,2757.0,2756.3,1.08454164]
[1643767334654,0.52151398,2757.0,2756.8,0.34102578]
[1643767334857,0.52151398,2757.0,2756.3,1.08454164]
[1643767335057,0.52151398,2757.0,2756.8,0.31811757]
[1643767335258,0.52151398,2757.0,2756.3,1.08454164]
[1643767336057,0.52151398,2757.0,2755.8,0.1812]
[1643767336058,0.18109,2756.9,2755.8,0.1812]
[1643767336265,0.18109,2756.9,2755.5,8.6683]
[1643767336266,0.7042,2756.8,2755.5,8.6683]
[1643767336466,0.7042,2756.8,2755.5,7.47]
[1643767336467,0.01276696,2756.4,2755.5,7.47]
[1643767336661,0.523,2756.3,2755.5,7.47]
[1643767336861,0.1814,2756.2,2755.5,7.47]
[1643767337058,0.7044,2756.2,2755.7,0.8938265]
[1643767337304,0.523,2756.2,2755.5,7.77]
[1643767337504,0.523,2756.2,2755.5,7.47]
[1643767337704,0.523,2756.2,2755.1,3.1456]
[1643767337705,0.523,2756.2,2755.8,0.37787415]
[1643767338103,0.523,2756.2,2755.1,3.1456]
[1643767338305,0.523,2756.2,2755.0,2.00586568]
[1643767338306,0.523,2756.2,2755.4,0.82721686]
[1643767338805,0.523,2756.2,2755.4,1.12721686]
[1643767339407,0.523,2756.2,2755.9,0.31606219]
[1643767340410,1.53404008,2756.1,2755.9,0.31606219]
[1643767340609,2.05704008,2756.1,2755.9,0.31606219]
[1643767340810,0.523,2756.1,2755.9,0.31606219]
[1643767341853,0.523,2756.1,2755.4,1.12721686]
[1643767343161,0.523,2756.1,2756.0,0.32024201]
[1643767346010,0.523,2756.1,2755.4,1.12721686]
[1643767347017,0.523,2756.1,2755.8,0.3829733]
[1643767347418,0.523,2756.1,2755.9,0.76992148]
[1643767348221,0.523,2756.1,2755.8,0.3829733]
[1643767348452,0.523,2756.1,2755.3,7.47]
[1643767348653,0.523,2756.1,2755.3,7.77]
[1643767348856,0.523,2756.1,2755.3,7.47]
[1643767349258,0.523,2756.1,2755.4,0.84269474]
[1643767349468,0.523,2756.1,2755.7,0.42473505]
[1643767349961,0.523,2756.1,2755.7,0.42339955]
[1643767355426,0.473,2756.1,2755.7,0.42339955]
[1643767357657,0.1814,2756.2,2755.9,0.85202359]
[1643767357856,5.77604646,2756.3,2755.9,0.85202359]
[1643767358156,5.77604646,2756.3,2755.9,1.15202359]
[1643767358756,5.77604646,2756.3,2755.9,0.85202359]
[1643767358955,5.77604646,2756.3,2756.2,0.43530285]
[1643767361513,5.77604646,2756.3,2755.9,1.15202359]
[1643767362015,5.77604646,2756.3,2755.9,0.3]
[1643767362214,5.77604646,2756.3,2755.2,1.1814]
[1643767362420,5.77604646,2756.3,2755.2,0.1814]
[1643767363116,5.77604646,2756.3,2756.1,0.38874486]
[1643767363561,5.77604646,2756.3,2755.2,0.1814]
[1643767363562,3.57961972,2756.2,2755.2,0.1814]
[1643767363759,2.53403004,2756.1,2755.1,1.5283]
[1643767363959,3.77486411,2756.0,2755.1,0.3]
[1643767364157,2.24076198,2756.0,2754.9,0.7314]
[1643767364559,2.24076198,2756.0,2755.3,0.3480783]
[1643767364560,1.89816057,2755.9,2755.3,0.3480783]
[1643767364762,2.04333614,2755.8,2755.3,0.6480783]
[1643767366362,2.71221995,2756.0,2755.3,0.6480783]
[1643767366563,2.53081995,2756.0,2755.3,0.6480783]
[1643767367203,0.523,2756.0,2755.3,0.6480783]
[1643767367707,0.523,2756.0,2755.3,0.5480783]
[1643767367902,1.9388635,2755.9,2755.3,0.5480783]
[1643767368102,0.89031652,2756.0,2755.3,0.5480783]
[1643767368303,1.95109011,2755.9,2755.3,0.5480783]
[1643767368503,0.84031652,2756.0,2755.3,0.5480783]
[1643767368504,2.78325762,2756.0,2755.3,0.5480783]
[1643767368702,2.41627896,2756.0,2755.3,0.5480783]
[1643767369707,1.53413207,2755.9,2755.3,0.5480783]
[1643767369909,1.93041708,2755.8,2755.3,0.5480783]
[1643767371366,11.13334296,2755.8,2755.3,0.5480783]
[1643767372164,11.13334296,2755.8,2755.3,0.1]
[1643767372366,11.13334296,2755.8,2754.7,0.1814]
[1643767372765,11.13334296,2755.8,2754.6,0.1814]
[1643767373365,11.13334296,2755.8,2755.3,0.41026581]
[1643767373766,11.13334296,2755.8,2755.3,0.3]
[1643767374165,11.13334296,2755.8,2755.0,1.2528391]
[1643767375021,11.13334296,2755.8,2755.0,0.3]
[1643767375319,11.13334296,2755.8,2755.0,0.37830895]
[1643767375523,11.13334296,2755.8,2755.0,0.67830895]
[1643767376121,11.13334296,2755.8,2755.0,1.44046129]
[1643767378325,10.85479661,2755.8,2755.0,1.44046129]
[1643767380160,1.71558522,2755.7,2755.0,0.67830895]
[1643767380462,1.91327862,2755.6,2755.0,0.67830895]
[1643767381062,1.86327862,2755.6,2755.0,0.67830895]
[1643767382061,0.1814,2755.7,2755.5,0.43611014]
[1643767382302,0.1814,2755.7,2754.9,0.99699291]
[1643767382501,0.1814,2755.7,2754.9,0.89699291]
[1643767383503,9.20292588,2755.8,2754.9,0.89699291]
[1643767385714,9.20292588,2755.8,2755.6,0.41532]
[1643767388770,9.20292588,2755.8,2755.6,0.71532]
[1643767389070,3.57490742,2755.7,2754.8,0.4314]
[1643767389272,1.53423563,2755.6,2754.6,0.1814]
[1643767389472,1.96159844,2755.5,2754.8,0.8089712]
[1643767389710,9.20292588,2755.8,2754.8,1.1089712]
[1643767389711,2.04371257,2755.7,2754.8,1.1089712]
[1643767389914,1.53431263,2755.6,2754.8,1.1089712]
[1643767390516,1.53431263,2755.6,2755.3,0.4321787]
[1643767391016,1.53431263,2755.5,2755.3,0.4321787]
[1643767391223,9.20292588,2755.8,2755.3,0.4321787]
[1643767391423,1.53428159,2755.7,2755.3,0.4321787]
[1643767393764,3.43262183,2755.7,2755.3,0.4321787]
[1643767393959,9.20292588,2755.8,2755.3,0.4321787]
[1643767394160,1.53422474,2755.7,2755.3,0.4321787]
[1643767395165,1.53422474,2755.7,2755.3,1.29466658]
[1643767395367,9.20292588,2755.8,2755.3,1.59466658]
[1643767395966,9.20292588,2755.8,2755.3,1.29466658]
[1643767397609,9.15292588,2755.8,2755.3,1.29466658]
[1643767398010,9.15292588,2755.8,2755.3,1.59466658]
[1643767400112,6.21560242,2756.4,2755.3,1.59466658]
[1643767400312,1.71534878,2756.3,2755.3,10.04516658]
[1643767400615,0.1814,2756.3,2755.3,10.04516658]
[1643767400816,0.1814,2756.3,2755.4,1.0]
[1643767401076,0.1814,2756.7,2756.3,0.43357804]
[1643767401280,1.53388347,2756.6,2756.3,0.43357804]
[1643767401485,0.1812,2756.5,2756.3,0.43357804]
[1643767401684,1.53388347,2756.4,2756.3,0.43357804]
[1643767402281,1.53388347,2756.9,2756.3,0.43357804]
[1643767402482,0.1812,2756.8,2756.3,0.43357804]
[1643767402680,1.53388347,2756.7,2756.3,0.43357804]
[1643767403081,1.53388347,2756.6,2756.3,0.73357804]
[1643767403283,0.1812,2757.0,2756.3,0.73357804]
[1643767403284,1.53388347,2756.5,2756.3,0.73357804]
[1643767403484,0.1812,2757.1,2756.3,0.73357804]
[1643767403691,1.53372748,2757.0,2756.3,0.73357804]
[1643767403992,0.67746421,2757.5,2756.3,0.73357804]
[1643767403993,1.53372748,2756.9,2756.3,0.73357804]
[1643767404185,0.1812,2757.4,2756.3,0.73357804]
[1643767404390,1.53358587,2757.3,2756.9,0.84312272]
[1643767404586,1.53358587,2757.3,2756.9,1.14312272]
[1643767404812,1.53358587,2757.2,2757.1,0.4233997]
[1643767405012,1.53358587,2757.2,2757.0,0.35397518]
[1643767405209,1.53358587,2757.1,2757.0,0.35397518]
[1643767405413,1.53358587,2757.2,2756.2,1.0]
[1643767405609,1.53358587,2757.2,2756.2,0.3]
[1643767406009,1.53358587,2757.2,2756.1,1.45686]
[1643767406211,1.53358587,2757.2,2756.4,1.07654006]
[1643767406409,1.53358587,2757.2,2756.9,0.36798843]
[1643767406614,1.53358587,2757.2,2756.9,0.66798843]
[1643767408665,7.74337551,2757.0,2755.2,0.00157884]
[1643767408866,7.74337551,2757.0,2755.2,0.1813]
[1643767408867,0.01247509,2755.7,2755.2,0.1813]
[1643767409064,0.01247509,2755.7,2755.0,0.00157884]
[1643767409065,0.01286148,2755.3,2755.0,0.00157884]
[1643767409271,0.19392872,2755.1,2755.0,0.00157884]
[1643767409469,6.5515,2755.0,2753.5,0.00157884]
[1643767409665,0.01229979,2754.1,2753.5,0.00157884]
[1643767409869,0.01275051,2753.6,2753.0,0.25]
[1643767410068,0.01275051,2753.6,2752.1,1.03808239]
[1643767410069,0.523,2753.5,2752.1,1.03808239]
[1643767410270,0.523,2753.5,2753.1,0.04149492]
[1643767410271,2.0,2753.4,2753.1,0.04149492]
[1643767410468,0.18109,2753.2,2752.1,0.98808239]
[1643767410665,0.33589614,2752.6,2752.1,1.42140365]
[1643767410865,0.523,2752.6,2752.1,1.42140365]
[1643767411067,0.1816,2753.0,2752.2,2.0]
[1643767411265,9.60311,2754.0,2752.1,1.42140365]
[1643767411266,0.1816,2753.2,2752.1,1.42140365]
[1643767411467,0.523,2753.6,2752.1,1.42140365]
[1643767411665,0.523,2753.3,2752.1,1.42140365]
[1643767411869,0.1816,2753.2,2752.7,0.35980955]
[1643767412065,0.1816,2753.2,2752.1,0.98808239]
[1643767412327,0.523,2753.1,2752.1,0.98808239]
[1643767412523,2.1816,2753.0,2752.1,0.98808239]
[1643767412724,0.823,2752.9,2752.1,0.98808239]
[1643767412925,2.1816,2752.8,2752.1,0.98808239]
[1643767413123,0.4296522,2752.2,2752.1,0.98808239]
[1643767413324,2.23006335,2752.6,2752.1,0.98808239]
[1643767413625,0.7046,2752.6,2752.1,0.98808239]
[1643767414428,0.43880565,2752.3,2752.1,0.98808239]
[1643767415227,1.92243975,2752.2,2752.1,0.98808239]
[1643767415427,0.43880565,2752.3,2752.1,0.98808239]
[1643767416260,6.4612418,2752.2,2752.1,0.98808239]
[1643767416464,6.6428418,2752.2,2752.1,0.98808239]
[1643767416862,2.1428418,2752.2,2752.1,0.98808239]
[1643767418060,0.1816,2752.2,2752.1,0.98808239]
[1643767419261,2.13244485,2752.2,2752.1,0.98808239]
[1643767419462,0.1816,2752.2,2752.1,0.98808239]
[1643767420113,0.7046,2752.3,2752.1,0.98808239]
[1643767420510,4.55268443,2752.2,2752.1,0.98808239]
[1643767420714,4.5470046,2752.2,2752.1,0.98808239]
[1643767420911,1.9470046,2752.2,2752.1,0.98808239]
[1643767421110,1.0559833,2752.3,2752.1,0.98808239]
[1643767421511,0.7046,2752.3,2752.1,0.98808239]
[1643767422513,0.1816,2752.3,2752.1,0.98808239]
[1643767422716,0.1816,2752.6,2752.2,0.32270998]
[1643767422920,0.1816,2752.9,2752.2,0.32270998]
[1643767423112,0.1816,2752.9,2752.1,0.98808239]
[1643767423764,0.1816,2752.9,2752.1,0.98385615]
[1643767424368,0.1816,2752.9,2752.1,1.28385615]
[1643767424564,0.1816,2752.9,2752.1,0.98385615]
[1643767425370,0.1816,2752.9,2752.3,0.43953053]
[1643767425568,0.1816,2752.9,2752.1,1.72540219]
[1643767425569,0.4816,2752.9,2752.1,1.72540219]
[1643767426172,1.0046,2752.9,2752.1,1.72540219]
[1643767426573,0.1816,2752.9,2752.2,2.17717842]
[1643767426871,0.1816,2753.0,2752.1,2.02540219]
[1643767427072,0.1816,2753.0,2752.6,0.69178014]
[1643767427708,0.1816,2753.0,2752.1,1.28385615]
[1643767428109,0.1816,2753.0,2752.1,0.98385615]
[1643767428313,0.1816,2753.0,2752.5,0.35738985]
[1643767428715,0.1816,2753.0,2749.6,0.0182]
[1643767428716,35.9689678,2752.6,2749.6,0.0182]
[1643767428922,35.9689678,2752.6,2748.8,0.30727894]
[1643767428923,0.37944913,2749.4,2748.8,0.30727894]
[1643767429114,0.37944913,2749.4,2748.4,3.81436664]
[1643767429115,2.0,2749.3,2748.4,0.75851467]
[1643767429317,2.0,2749.3,2747.3,22.66590619]
[1643767429318,0.01221297,2748.7,2747.3,22.66590619]
[1643767429517,0.01221297,2748.7,2747.5,0.99999999]
[1643767429518,0.7049,2748.6,2747.5,0.99999999]
[1643767429819,0.7049,2748.6,2748.2,0.4447643]
[1643767430216,0.3,2748.5,2748.2,0.4447643]
[1643767430417,0.7049,2748.4,2748.2,0.4447643]
[1643767430616,0.03515008,2749.1,2748.2,0.4447643]
[1643767430816,2.19893983,2749.4,2748.2,0.4447643]
[1643767430817,0.7049,2749.0,2748.9,0.80223032]
[1643767431066,3.91369344,2749.4,2748.9,0.80223032]
[1643767431067,0.523,2749.2,2748.9,0.80223032]
[1643767431268,2.1817,2749.1,2748.2,0.3947643]
[1643767431567,0.523,2749.1,2748.2,0.3947643]
[1643767431761,0.1819,2749.0,2748.2,0.3947643]
[1643767431962,0.1819,2749.2,2748.2,0.3947643]
[1643767432163,0.1817,2749.3,2749.1,0.70723159]
[1643767432363,0.37944913,2749.4,2748.2,0.6447643]
[1643767432571,0.1817,2749.3,2748.2,0.6447643]
[1643767432763,0.37944913,2749.4,2748.2,0.9447643]
[1643767433162,0.37944913,2749.4,2749.3,0.40785752]
[1643767434710,0.1817,2749.5,2749.3,0.40785752]
[1643767435820,0.1817,2749.6,2749.3,0.40785752]
[1643767436024,0.66119997,2750.1,2749.3,0.40785752]
[1643767436025,1.0,2749.9,2749.4,12.3929]
[1643767436215,1.0,2749.9,2749.4,12.3429]
[1643767436415,1.0,2749.9,2749.4,12.6429]
[1643767436615,1.0,2749.9,2749.4,12.5929]
[1643767438116,1.0,2749.9,2749.4,13.59289999]
[1643767438461,1.0,2749.9,2749.5,1.0]
[1643767438760,1.0,2749.9,2749.5,0.3]
[1643767439360,1.0,2749.9,2749.8,3.98593524]
[1643767439563,1.0,2749.9,2749.8,1.28593524]
[1643767439763,1.0,2749.9,2749.8,1.58593524]
[1643767440963,0.01223966,2750.4,2749.8,1.58593524]
[1643767441165,1.1817,2750.9,2750.6,0.33614002]
[1643767441365,1.1817,2750.9,2749.8,1.16788612]
[1643767441366,1.0,2749.9,2749.8,1.16788612]
[1643767441574,1.0,2749.9,2747.5,1.1683]
[1643767441575,1.0,2749.7,2747.5,1.1683]
[1643767441770,1.0,2749.7,2748.3,0.00159607]
[1643767441771,0.01246464,2748.8,2748.3,0.00159607]
[1643767441967,7.56263666,2748.4,2748.3,0.00159607]
[1643767442217,7.56263666,2748.4,2747.9,0.25]
[1643767442218,1.0,2748.2,2747.9,0.25]
[1643767442410,20.98,2748.3,2747.6,12.4004]
[1643767442411,1.0,2747.8,2747.6,12.4004]
[1643767442613,8.2549,2747.7,2747.6,12.4004]
[1643767442809,1.7049,2747.7,2747.6,12.4004]
[1643767443218,1.7049,2747.7,2746.9,0.25]
[1643767443413,1.7049,2747.7,2745.5,3.26408879]
[1643767443414,0.01217252,2747.3,2745.7,11.79286912]
[1643767443612,0.7049,2747.2,2745.7,11.79286912]
[1643767443914,3.13887258,2747.1,2746.0,0.6958382]
[1643767444113,0.74110374,2747.2,2746.0,0.6958382]
[1643767444114,1.0,2746.9,2746.0,0.6958382]
[1643767444311,1.0,2746.7,2746.0,0.6958382]
[1643767444512,0.95,2746.7,2746.0,0.9458382]
[1643767444712,0.95,2746.7,2746.0,1.2458382]
[1643767444914,0.95,2746.7,2746.0,0.6958382]
[1643767445114,0.95,2746.7,2745.8,0.04149491]
[1643767445115,0.96201429,2746.7,2745.8,0.04149491]
[1643767445316,0.96201429,2746.7,2746.4,0.37544178]
[1643767445722,0.95,2746.7,2746.4,0.37544178]
[1643767445962,0.95,2746.6,2746.4,0.37544178]
[1643767446160,0.95,2746.6,2746.5,7.33581244]
[1643767446361,0.95,2746.6,2746.5,0.78581244]
[1643767446962,0.95,2746.6,2746.5,1.08581244]
[1643767448269,0.95,2746.6,2746.4,0.37544178]
[1643767449705,0.95,2746.6,2745.8,1.04149491]
[1643767449919,1.7232,2746.6,2745.7,11.73436403]
[1643767450112,0.95,2746.4,2745.7,11.73436403]
[1643767450922,0.95,2746.4,2746.3,0.79921966]
[1643767451516,0.95,2746.4,2746.3,1.09921966]
[1643767452116,0.95,2746.4,2746.3,1.48065733]
[1643767452316,0.95,2746.4,2746.3,1.18065733]
[1643767452916,0.95,2746.4,2746.3,1.48065733]
[1643767453320,0.95,2746.4,2746.3,4.73065733]
[1643767454364,0.414,2746.4,2746.3,4.73065733]
[1643767454563,0.414,2746.4,2746.3,2.78065733]
[1643767454763,0.414,2746.4,2746.3,1.78065733]
[1643767454965,0.414,2746.4,2746.3,2.78065733]
[1643767456171,0.414,2746.4,2746.3,1.78065733]
[1643767456965,0.414,2746.4,2746.3,1.48065733]
[1643767457414,0.414,2746.4,2745.7,11.73436403]
[1643767457415,0.5959,2746.4,2745.7,11.73436403]
[1643767457617,0.414,2746.2,2745.7,11.73436403]
[1643767458412,0.414,2746.2,2745.8,0.38118642]
[1643767458612,0.414,2746.2,2745.8,0.68118642]
[1643767458818,0.414,2746.2,2745.8,1.68118641]
[1643767459013,0.414,2746.2,2745.8,1.68118642]
[1643767459314,0.414,2746.2,2745.9,0.72038011]
[1643767461063,0.414,2746.2,2746.0,1.29999999]
[1643767461567,0.414,2746.2,2746.0,0.6]
[1643767461968,0.414,2746.2,2746.0,0.3]
[1643767462366,0.1819,2747.0,2746.0,6.85]
[1643767462568,0.70067862,2747.3,2746.0,6.85]
[1643767462569,0.1819,2747.2,2746.4,0.99999999]
[1643767462770,0.1819,2747.2,2746.4,1.29999999]
[1643767462968,0.1819,2747.7,2747.5,0.77097334]
[1643767463170,0.70067862,2747.1,2746.5,0.38032447]
[1643767464074,0.70067862,2747.1,2746.6,0.69739664]
[1643767464476,0.70067862,2747.1,2747.0,7.54999999]
[1643767464727,0.70067862,2747.1,2747.0,9.14999999]
[1643767465123,0.70067862,2747.1,2747.0,8.15]
[1643767465319,0.70067862,2747.1,2747.0,4.28859608]
[1643767465520,0.70067862,2747.1,2747.0,0.43859608]
[1643767467523,0.70067862,2747.1,2747.0,7.43859608]
[1643767470668,0.70067862,2747.1,2747.0,0.43859608]
[1643767471174,0.70067862,2747.1,2746.6,0.69739664]
[1643767471175,0.70067862,2747.1,2746.6,4.19739664]
[1643767471379,0.70067862,2746.9,2746.6,0.69739664]
[1643767471776,0.1819,2746.8,2746.6,0.69739664]
[1643767472213,0.1819,2746.8,2745.7,11.98436403]
[1643767472214,0.1819,2746.8,2746.3,0.37867238]
[1643767472415,0.70067862,2746.7,2746.3,0.37867238]
[1643767472616,0.70067862,2746.7,2746.3,0.67867238]
[1643767472815,0.70067862,2746.6,2746.3,0.67867238]
[1643767473615,0.70067862,2746.6,2746.5,0.71775161]
[1643767474115,0.70067862,2746.6,2746.5,1.01775161]
[1643767474624,2.80067606,2746.6,2745.7,11.98436403]
[1643767474822,0.70067862,2746.4,2745.7,11.73436403]
[1643767475021,0.1819,2746.3,2745.7,11.73436403]
[1643767475820,0.1819,2746.3,2746.2,0.84644713]
[1643767477264,0.70067862,2746.4,2746.2,0.84644713]
[1643767477462,0.70067862,2746.4,2746.3,0.42128528]
[1643767477867,0.70067862,2746.4,2746.2,0.84644713]
[1643767478066,0.70067862,2746.4,2745.7,11.73436403]
[1643767478265,0.70067862,2746.2,2745.7,12.03436403]
[1643767479264,0.70067862,2746.2,2746.1,0.3853082]
[1643767480934,0.70067862,2746.2,2744.7,0.00156949]
[1643767480935,0.70067862,2746.0,2744.7,0.00156949]
[1643767481143,0.70067862,2746.0,2744.5,1.86467282]
[1643767481144,0.01207323,2745.1,2744.5,1.86467282]
[1643767481431,0.01297038,2744.6,2744.5,1.80850896]
[1643767481637,0.895749,2744.6,2744.5,1.80850896]
[1643767481839,6.58606053,2744.5,2744.2,0.0334]
[1643767482030,6.58606053,2744.5,2743.3,0.25]
[1643767482031,0.70067862,2743.8,2743.3,0.25]
[1643767482236,0.70067862,2743.8,2742.4,3.0468]
[1643767482237,0.70067862,2743.6,2742.4,3.0468]
[1643767482437,0.01266433,2743.0,2742.2,1.3185888]
[1643767482633,0.70067862,2742.9,2742.2,1.3185888]
[1643767482937,0.01266433,2743.0,2742.2,1.0685888]
[1643767483132,0.88287862,2743.2,2742.5,0.99999999]
[1643767483133,0.70067862,2743.2,2742.5,0.99999999]
[1643767483331,0.01293838,2744.3,2743.7,1.91928316]
[1643767483573,1.21205645,2744.9,2743.7,1.81928316]
[1643767483574,0.1822,2744.2,2743.7,1.81928316]
[1643767483764,0.01253993,2744.5,2743.7,1.81928316]
[1643767483964,0.4044188,2743.8,2743.7,1.81928316]
[1643767484365,0.1822,2744.4,2743.7,1.81928316]
[1643767484566,0.1822,2744.4,2743.7,2.11928316]
[1643767484777,0.01211475,2744.9,2743.7,2.11928316]
[1643767484970,0.1821,2744.8,2743.8,0.87811276]
[1643767485173,0.1821,2744.8,2743.7,2.11928316]
[1643767485373,0.36504369,2744.4,2743.7,1.81928316]
[1643767485572,0.1822,2744.3,2743.7,1.81928316]
[1643767486072,0.1822,2744.8,2743.8,0.25]
[1643767486272,0.53529131,2744.8,2743.7,1.81928316]
[1643767486772,0.53529131,2744.8,2744.2,0.44510178]
[1643767486974,0.53529131,2744.8,2744.4,0.94598155]
[1643767488039,0.35309131,2744.7,2744.4,1.3137737]
[1643767488238,0.35309131,2744.7,2744.4,1.24598155]
[1643767489440,0.34395187,2744.7,2744.5,0.33226745]